[Event "Marienbad IM-I 2022"]
[Site "Marianske Lazne"]
[Date "2022.01.15"]
[Round "1.12"]
[White "Ricken, Katharina"]
[Black "Bracker, Arne"]
[Result "0-1"]
[ECO "A05"]
[WhiteElo "2004"]
[BlackElo "2268"]
[Annotator "ChessBase"]
[PlyCount "74"]
[EventDate "2022.01.15"]
[EventType "tourn"]
[EventCountry "CZE"]
[SourceTitle "playchess.com"]
[Source "ChessBase"]
[SourceQuality "1"]
[TimeControl "40/5400+30:1800+30"]

1. Nf3 {[%emt 0:00:01]} Nf6 {[%emt 0:00:26]} 2. g3 {[%emt 0:00:02]} g6 {[%emt 0:00:21]} 3. b3 {[%emt 0:00:03]} Bg7 {[%emt 0:00:13]} 4. Bb2 {[%emt 0:00:04]} d6 {[%emt 0:00:19]} 5. d4 {[%emt 0:00:03]} c5 {[%emt 0:00:25]} 6. c4 {[%emt 0:00:05]} Ne4 {[%emt 0:00:45]} 7. Nbd2 {[%emt 0:03:52]} Qa5 {[%emt 0:00:59]} 8. e3 {[%emt 0:07:09]} Nc6 {[%emt 0:12:19]} 9. Qc1 {[%emt 0:05:54]} Bg4 {[%emt 0:25:13]} 10. Bg2 {[%emt 0:03:20]} O-O {[%emt 0:19:55]} 11. h3 {[%emt 0:05:57]} Bxf3 {[%emt 0:02:08]} 12. Bxf3 {[%emt 0:00:11]} Nxd2 {[%emt 0:01:27]} 13. Qxd2 {[%emt 0:00:01]} Qxd2+ {[%emt 0:00:25]} 14. Kxd2 {[%emt 0:00:01]} cxd4 {[%emt 0:00:19]} 15. exd4 {[%emt 0:01:11]} Nxd4 {[%emt 0:03:58]} 16. Bxb7 {[%emt 0:00:59]} Rab8 {[%emt 0:01:57]} 17. Bg2 {[%emt 0:00:33]} Nxb3+ {[%emt 0:01:54]} 18. axb3 {[%emt 0:00:02]} Bxb2 {[%emt 0:00:14]} 19. Rxa7 {[%emt 0:00:22]} e6 20. Rd7 {[%emt 0:06:44]} Rxb3 {[%emt 0:06:51]} 21. Rxd6 {[%emt 0:01:06]} Rc8 {[%emt 0:02:48]} 22. Rc6 {[%emt 0:02:17]} Rcb8 {[%emt 0:01:23]} 23. Rd1 {[%emt 0:06:01]} Bd4 {[%emt 0:00:18]} 24. Ke1 {[%emt 0:02:03]} e5 {[%emt 0:02:09]} 25. Rf6 {[%emt 0:02:24]} Kg7 {[%emt 0:00:54]} 26. Rf3 {[%emt 0:03:46]} Rb2 {[%emt 0:00:14]} 27. Rd2 {[%emt 0:00:56]} Rb1+ {[%emt 0:02:19]} 28. Rd1 {[%emt 0:00:49]} e4 {[%emt 0:01:08]} 29. Ra3 {[%emt 0:02:42]} Bxf2+ {[%emt 0:06:14]} 30. Ke2 {[%emt 0:01:35]} R8b2+ {[%emt 0:01:08]} 31. Rd2 Rxd2+ {[%emt 0:00:59]} 32. Kxd2 {[%emt 0:00:31]} f5 {[%emt 0:00:20]} 33. g4 {[%emt 0:01:11]} Rg1 {[%emt 0:00:18]} 34. Bf1 {[%emt 0:02:27]} Rxf1 {[%emt 0:00:51]} 35. Ke2 {[%emt 0:00:00]} Bc5 {[%emt 0:00:25]} 36. Ra5 {[%emt 0:00:12]} Rf2+ {[%emt 0:00:08]} 37. Ke1 {[%emt 0:00:10]} Bb4+ {[%emt 0:00:06]} 0-1

[Event "Marienbad IM-I 2022"]
[Site "Marianske Lazne"]
[Date "2022.01.15"]
[Round "1.13"]
[White "Plischki, Sebastian"]
[Black "Mantovani, Renzo"]
[Result "1-0"]
[ECO "D31"]
[WhiteElo "2375"]
[BlackElo "2272"]
[Annotator "ChessBase"]
[PlyCount "69"]
[EventDate "2022.01.15"]
[EventType "tourn"]
[EventCountry "CZE"]
[SourceTitle "playchess.com"]
[Source "ChessBase"]
[SourceQuality "1"]
[TimeControl "40/5400+30:1800+30"]

1. d4 {[%emt 0:00:05]} d5 {[%emt 0:00:49]} 2. c4 {[%emt 0:00:17]} e6 {[%emt 0:00:10]} 3. Nc3 {[%emt 0:00:30]} a6 {[%emt 0:02:39]} 4. cxd5 {[%emt 0:01:40]} exd5 {[%emt 0:00:08]} 5. Nf3 {[%emt 0:00:19]} c6 {[%emt 0:00:10]} 6. Qc2 {[%emt 0:05:21]} Bd6 {[%emt 0:07:31]} 7. e4 {[%emt 0:04:06]} dxe4 {[%emt 0:01:14]} 8. Nxe4 {[%emt 0:00:11]} Bb4+ {[%emt 0:04:59]} 9. Nc3 {[%emt 0:02:57]} Nf6 {[%emt 0:07:50]} 10. Bc4 {[%emt 0:02:56]} O-O {[%emt 0:01:56]} 11. O-O {[%emt 0:00:05]} Bg4 {[%emt 0:07:13]} 12. Qb3 {[%emt 0:11:56]} Bxc3 {[%emt 0:02:50]} 13. bxc3 {[%emt 0:03:25]} Bxf3 {[%emt 0:12:03]} 14. Qxb7 {[%emt 0:02:57]} Bd5 {[%emt 0:13:12]} 15. Bxd5 {[%emt 0:00:29]} Nxd5 {[%emt 0:04:11]} 16. Qxa8 {[%emt 0:11:38]} Qb6 {[%emt 0:03:40]} 17. c4 {[%emt 0:05:11]} Nc7 {[%emt 0:27:05]} 18. c5 {[%emt 0:00:19]} Qb4 {[%emt 0:00:25]} 19. Qa7 {[%emt 0:00:26]} Nb5 {[%emt 0:00:15]} 20. Qb7 {[%emt 0:02:39]} Qxd4 {[%emt 0:00:30]} 21. Be3 {[%emt 0:00:19]} Qd7 {[%emt 0:01:24]} 22. Qxd7 {[%emt 0:00:56]} Nxd7 {[%emt 0:00:02]} 23. Rfd1 {[%emt 0:00:51]} Nf6 {[%emt 0:00:02]} 24. a4 {[%emt 0:01:01]} Nc3 {[%emt 0:00:03]} 25. Rd6 {[%emt 0:00:47]} Rc8 {[%emt 0:00:03]} 26. Rd3 {[%emt 0:02:07]} Ncd5 {[%emt 0:00:14]} 27. Rb1 {[%emt 0:00:40]} h6 {[%emt 0:00:02]} 28. g3 {[%emt 0:00:20]} Re8 {[%emt 0:00:30]} 29. Kf1 {[%emt 0:01:21]} Re4 {[%emt 0:00:06]} 30. Bd4 {[%emt 0:01:12]} a5 {[%emt 0:00:56]} 31. f3 {[%emt 0:02:01]} Re8 {[%emt 0:00:17]} 32. Bxf6 {[%emt 0:00:22]} gxf6 {[%emt 0:00:08]} 33. Kf2 {[%emt 0:00:43]} Re5 {[%emt 0:00:15]} 34. Rb7 {[%emt 0:05:10]} Kg7 {[%emt 0:00:33]} 35. Ra7 {[%emt 0:00:40]} 1-0

[Event "Marienbad IM-I 2022"]
[Site "Marianske Lazne"]
[Date "2022.01.15"]
[Round "1.14"]
[White "Redzisz, Michal"]
[Black "Jurek, Josef"]
[Result "1/2-1/2"]
[ECO "A05"]
[WhiteElo "2261"]
[BlackElo "2207"]
[Annotator "ChessBase"]
[PlyCount "28"]
[EventDate "2022.01.15"]
[EventType "tourn"]
[EventCountry "CZE"]
[SourceTitle "playchess.com"]
[Source "ChessBase"]
[SourceQuality "1"]
[TimeControl "40/5400+30:1800+30"]

1. Nf3 {[%emt 0:00:08]} Nf6 {[%emt 0:00:26]} 2. d4 {[%emt 0:00:46]} e6 {[%emt 0:00:34]} 3. g3 {[%emt 0:02:47]} c5 {[%emt 0:01:35]} 4. Bg2 {[%emt 0:00:45]} cxd4 {[%emt 0:01:03]} 5. Nxd4 {[%emt 0:00:13]} d5 {[%emt 0:00:34]} 6. O-O {[%emt 0:03:31]} e5 {[%emt 0:00:54]} 7. Nb3 {[%emt 0:02:14]} Be6 {[%emt 0:00:32]} 8. Bg5 {[%emt 0:02:11]} Nbd7 {[%emt 0:00:34]} 9. e4 {[%emt 0:20:59]} dxe4 {[%emt 0:07:23]} 10. Nc3 {[%emt 0:04:32]} Be7 {[%emt 0:03:57]} 11. Nxe4 {[%emt 0:12:54]} Nxe4 {[%emt 0:01:05]} 12. Bxe7 {[%emt 0:00:02]} Qxe7 {[%emt 0:11:26]} 13. Bxe4 {[%emt 0:00:03]} Nf6 {[%emt 0:03:23]} 14. Bg2 {[%emt 0:01:08]} O-O 1/2-1/2

[Event "Marienbad IM-I 2022"]
[Site "Marianske Lazne"]
[Date "2022.01.18"]
[Round "5.11"]
[White "Plischki, Sebastian"]
[Black "Matras, Ondrej"]
[Result "1-0"]
[ECO "E73"]
[WhiteElo "2375"]
[BlackElo "2223"]
[Annotator "RC"]
[PlyCount "65"]
[EventDate "2022.01.15"]
[EventType "tourn"]
[EventCountry "CZE"]
[SourceTitle "playchess.com"]
[Source "ChessBase"]
[SourceQuality "1"]
[TimeControl "40/5400+30:1800+30"]

1. c4 {[%emt 0:00:03]} Nf6 {[%emt 0:00:52]} 2. Nc3 {[%emt 0:00:10]} g6 {[%emt 0:01:23]} 3. e4 {[%emt 0:00:14]} d6 {[%emt 0:00:10]} 4. d4 {[%emt 0:00:06]} Bg7 {[%emt 0:00:06]} 5. Be2 {[%emt 0:00:16]} c6 {[%emt 0:04:20]} 6. Nf3 {[%emt 0:01:01]} O-O {[%emt 0:00:22]} 7. O-O {[%emt 0:00:15]} Bg4 {[%emt 0:04:29]} 8. Be3 {[%emt 0:01:25]} Nbd7 {[%emt 0:02:39]} 9. Ne1 {[%emt 0:06:50]} Bxe2 {[%emt 0:01:09]} 10. Qxe2 {[%emt 0:00:08]} c5 {[%emt 0:00:50]} 11. dxc5 {[%emt 0:08:00]} dxc5 {[%emt 0:01:17]} 12. Rd1 {[%emt 0:01:23]} Qc8 {[%emt 0:01:24]} 13. f4 {[%emt 0:02:06]} e6 {[%emt 0:01:56]} 14. e5 {[%emt 0:03:55]} Ne8 {[%emt 0:00:03]} 15. Rxd7 {[%emt 0:05:23]} Qxd7 {[%emt 0:00:02]} 16. Bxc5 {[%emt 0:00:09]} Rc8 {[%emt 0:00:15]} 17. Bxf8 {[%emt 0:00:33]} Bxf8 {[%emt 0:00:12]} 18. Nf3 {[%emt 0:00:43]} Bb4 {[%emt 0:03:35]} 19. Ne4 {[%emt 0:02:30]} Qc6 {[%emt 0:00:04]} 20. b3 {[%emt 0:02:05]} Rd8 {[%emt 0:00:02]} 21. h3 {[%emt 0:04:21]} h5 {[%emt 0:01:13]} 22. Kh2 {[%emt 0:00:58]} Kg7 {[%emt 0:00:42]} 23. g4 {[%emt 0:03:33]} hxg4 {[%emt 0:00:12]} 24. hxg4 {[%emt 0:00:06]} Be7 {[%emt 0:01:37]} 25. Kg3 {[%emt 0:00:38]} Nc7 {[%emt 0:03:30]} 26. Rh1 {[%emt 0:01:47]} Rh8 {[%emt 0:00:02]} 27. Rxh8 {[%emt 0:00:11]} Kxh8 {[%emt 0:00:02]} 28. g5 {[%emt 0:13:48]} Ne8 {[%emt 0:01:15]} 29. Nf6 {[%emt 0:02:12]} Nxf6 {[%emt 0:01:32]} 30. gxf6 {[%emt 0:00:28]} Bb4 {[%emt 0:00:25]} 31. a3 {[%emt 0:01:23]} Bxa3 {[%emt 0:00:45]} 32. Qh2+ {[%emt 0:00:23]} Kg8 {[%emt 0:00:02]} 33. Ng5 {[%emt 0:00:07]} 1-0

[Event "Marienbad IM-I 2022"]
[Site "Marianske Lazne"]
[Date "2022.01.19"]
[Round "6.12"]
[White "Bracker, Arne"]
[Black "Jurek, Josef"]
[Result "1-0"]
[ECO "C03"]
[WhiteElo "2268"]
[BlackElo "2207"]
[Annotator "ChessBase"]
[PlyCount "55"]
[EventDate "2022.01.15"]
[EventType "tourn"]
[EventCountry "CZE"]
[SourceTitle "playchess.com"]
[Source "ChessBase"]
[SourceQuality "1"]
[TimeControl "40/5400+30:1800+30"]

1. e4 {[%emt 0:00:14]} e6 {[%emt 0:00:07]} 2. d4 {[%emt 0:00:14]} d5 {[%emt 0:00:09]} 3. Nd2 {[%emt 0:00:30]} Be7 {[%emt 0:00:25]} 4. Ngf3 {[%emt 0:00:30]} Nf6 {[%emt 0:00:23]} 5. e5 {[%emt 0:00:40]} Nfd7 {[%emt 0:00:13]} 6. Bd3 {[%emt 0:00:23]} c5 {[%emt 0:00:20]} 7. c3 {[%emt 0:00:13]} b6 {[%emt 0:04:46]} 8. O-O {[%emt 0:01:03]} Ba6 {[%emt 0:00:34]} 9. Ne1 {[%emt 0:00:14]} Bxd3 {[%emt 0:02:46]} 10. Nxd3 {[%emt 0:00:09]} Nc6 {[%emt 0:01:26]} 11. Qg4 {[%emt 0:00:18]} g6 {[%emt 0:09:18]} 12. Nf3 {[%emt 0:00:33]} cxd4 {[%emt 0:05:08]} 13. cxd4 {[%emt 0:00:31]} h5 {[%emt 0:05:32]} 14. Qg3 {[%emt 0:00:43]} Nf8 {[%emt 0:05:35]} 15. h4 {[%emt 0:02:37]} Qd7 {[%emt 0:03:56]} 16. Bd2 {[%emt 0:04:21]} Qb7 {[%emt 0:07:40]} 17. Qf4 {[%emt 0:08:42]} a5 {[%emt 0:04:13]} 18. Rfc1 {[%emt 0:04:10]} Rc8 {[%emt 0:08:17]} 19. a3 {[%emt 0:08:14]} a4 {[%emt 0:04:23]} 20. Rc2 {[%emt 0:08:20]} Na5 {[%emt 0:06:24]} 21. Rxc8+ {[%emt 0:03:02]} Qxc8 {[%emt 0:00:13]} 22. Bxa5 {[%emt 0:00:14]} bxa5 {[%emt 0:00:10]} 23. Ng5 {[%emt 0:08:07]} Bxg5 {[%emt 0:01:38]} 24. Qxg5 {[%emt 0:00:50]} Nd7 {[%emt 0:03:08]} 25. Rc1 {[%emt 0:01:43]} Qb7 {[%emt 0:08:14]} 26. Nf4 {[%emt 0:04:50]} Nb6 {[%emt 0:07:56]} 27. Qf6 {[%emt 0:03:51]} O-O {[%emt 0:03:17]} 28. Nxh5 {[%emt 0:02:45]} 1-0

[Event "Marienbad IM-I 2022"]
[Site "Marianske Lazne"]
[Date "2022.01.19"]
[Round "6.14"]
[White "Ricken, Katharina"]
[Black "Gnojek, Petr"]
[Result "0-1"]
[ECO "A05"]
[WhiteElo "2004"]
[BlackElo "2257"]
[Annotator "ChessBase"]
[PlyCount "86"]
[EventDate "2022.01.15"]
[EventType "tourn"]
[EventCountry "CZE"]
[SourceTitle "playchess.com"]
[Source "ChessBase"]
[SourceQuality "1"]
[TimeControl "40/5400+30:1800+30"]

1. Nf3 {[%emt 0:00:01]} Nf6 {[%emt 0:00:06]} 2. g3 {[%emt 0:00:03]} g6 {[%emt 0:00:04]} 3. b3 {[%emt 0:00:03]} Bg7 {[%emt 0:00:04]} 4. Bb2 {[%emt 0:00:03]} c5 {[%emt 0:00:04]} 5. c4 {[%emt 0:00:03]} d6 {[%emt 0:00:04]} 6. Bg2 {[%emt 0:00:03]} e5 {[%emt 0:00:03]} 7. d3 {[%emt 0:00:07]} O-O {[%emt 0:00:11]} 8. Nc3 {[%emt 0:00:07]} Nc6 {[%emt 0:00:04]} 9. O-O {[%emt 0:00:04]} a6 {[%emt 0:00:48]} 10. Ne1 {[%emt 0:00:11]} Bd7 {[%emt 0:00:19]} 11. Nc2 {[%emt 0:00:12]} Rb8 {[%emt 0:02:19]} 12. Ne3 {[%emt 0:00:10]} b5 {[%emt 0:06:20]} 13. Ned5 {[%emt 0:01:15]} Nxd5 {[%emt 0:07:12]} 14. Nxd5 {[%emt 0:00:09]} f5 {[%emt 0:00:42]} 15. e3 {[%emt 0:00:18]} Be6 {[%emt 0:08:47]} 16. Qd2 {[%emt 0:00:46]} Ne7 {[%emt 0:03:25]} 17. f4 {[%emt 0:01:46]} Qd7 {[%emt 0:09:04]} 18. Rae1 {[%emt 0:00:48]} Rbe8 {[%emt 0:04:34]} 19. Re2 {[%emt 0:03:57]} Nxd5 {[%emt 0:02:06]} 20. cxd5 {[%emt 0:00:35]} Bf7 {[%emt 0:00:04]} 21. e4 {[%emt 0:01:38]} Re7 {[%emt 0:08:33]} 22. fxe5 {[%emt 0:02:57]} Bxe5 {[%emt 0:02:30]} 23. Bh3 {[%emt 0:00:17]} Qe8 {[%emt 0:01:41]} 24. Ref2 {[%emt 0:03:04]} Bxb2 {[%emt 0:13:39]} 25. Qxb2 {[%emt 0:00:02]} Re5 {[%emt 0:00:04]} 26. Qd2 {[%emt 0:14:34]} Qe7 {[%emt 0:03:11]} 27. Qh6 {[%emt 0:01:47]} Re8 {[%emt 0:07:46]} 28. g4 {[%emt 0:02:48]} Qf8 {[%emt 0:02:19]} 29. Qxf8+ {[%emt 0:03:45]} Kxf8 {[%emt 0:00:03]} 30. gxf5 {[%emt 0:01:14]} g5 {[%emt 0:00:01]} 31. f6 {[%emt 0:02:38]} c4 {[%emt 0:04:48]} 32. Bf5 {[%emt 0:04:22]} cxd3 {[%emt 0:01:21]} 33. Bxh7 {[%emt 0:01:04]} Rc8 {[%emt 0:02:41]} 34. Rd2 {[%emt 0:00:53]} Bh5 {[%emt 0:01:40]} 35. Kf2 {[%emt 0:07:07]} Be2 {[%emt 0:03:10]} 36. Rg1 {[%emt 0:00:02]} Kf7 {[%emt 0:01:45]} 37. Bf5 {[%emt 0:03:42]} Rh8 {[%emt 0:01:37]} 38. Rxg5 {[%emt 0:03:06]} Rxh2+ {[%emt 0:01:36]} 39. Ke3 {[%emt 0:02:03]} Rh6 {[%emt 0:01:37]} 40. Rg7+ {[%emt 0:02:34]} Kf8 {[%emt 0:01:59]} 41. Bg4 {[%emt 0:32:21]} Rxf6 {[%emt 0:30:55]} 42. Bxe2 {[%emt 0:04:00]} dxe2 {[%emt 0:00:04]} 43. Rg1 {[%emt 0:01:53]} Rf1 {[%emt 0:00:08]} 0-1

[Event "Marienbad IM-I 2022"]
[Site "Marianske Lazne"]
[Date "2022.01.20"]
[Round "7.15"]
[White "Mantovani, Renzo"]
[Black "Bracker, Arne"]
[Result "0-1"]
[ECO "A06"]
[WhiteElo "2272"]
[BlackElo "2268"]
[Annotator "RC"]
[PlyCount "96"]
[EventDate "2022.01.15"]
[EventType "tourn"]
[EventCountry "CZE"]
[SourceTitle "playchess.com"]
[Source "ChessBase"]
[SourceQuality "1"]
[TimeControl "40/5400+30:1800+30"]

1. Nf3 {[%emt 0:00:12]} d5 {[%emt 0:00:09]} 2. g3 {[%emt 0:00:54]} Nf6 {[%emt 0:00:21]} 3. Bg2 {[%emt 0:00:34]} e6 {[%emt 0:00:20]} 4. O-O {[%emt 0:01:00]} Be7 {[%emt 0:00:05]} 5. d3 {[%emt 0:03:11]} O-O {[%emt 0:00:28]} 6. Nbd2 {[%emt 0:03:10]} Nc6 {[%emt 0:00:30]} 7. e4 {[%emt 0:13:09]} dxe4 {[%emt 0:02:10]} 8. dxe4 {[%emt 0:00:20]} b6 {[%emt 0:00:21]} 9. Re1 {[%emt 0:03:28]} Bb7 {[%emt 0:01:24]} 10. c3 {[%emt 0:12:51]} Nd7 {[%emt 0:04:18]} 11. Qc2 {[%emt 0:05:04]} Nc5 {[%emt 0:12:56]} 12. Bf1 {[%emt 0:06:00]} a5 {[%emt 0:01:01]} 13. Nb3 {[%emt 0:02:12]} Nxb3 {[%emt 0:08:52]} 14. axb3 {[%emt 0:00:51]} Bc5 {[%emt 0:02:17]} 15. Bg5 {[%emt 0:04:21]} Qe8 {[%emt 0:01:28]} 16. Bb5 {[%emt 0:01:53]} h6 {[%emt 0:05:44]} 17. Be3 {[%emt 0:05:05]} Qe7 {[%emt 0:05:34]} 18. Rad1 {[%emt 0:13:05]} Rfd8 {[%emt 0:06:31]} 19. Qe2 {[%emt 0:03:34]} Rxd1 {[%emt 0:06:11]} 20. Rxd1 {[%emt 0:01:03]} Bxe3 {[%emt 0:00:20]} 21. Qxe3 {[%emt 0:00:40]} Rd8 {[%emt 0:00:20]} 22. Rxd8+ {[%emt 0:01:50]} Qxd8 {[%emt 0:00:37]} 23. Bxc6 {[%emt 0:03:50]} Bxc6 {[%emt 0:04:08]} 24. Qd2 {[%emt 0:07:52]} Qa8 {[%emt 0:13:35]} 25. Ne5 {[%emt 0:01:05]} Bxe4 {[%emt 0:03:58]} 26. f3 {[%emt 0:04:09]} Qd5 {[%emt 0:03:12]} 27. Qf4 Bf5 28. g4 {[%emt 0:02:04]} g5 {[%emt 0:05:17]} 29. Qe3 {[%emt 0:00:22]} Bc2 {[%emt 0:00:20]} 30. c4 {[%emt 0:00:37]} Qd1+ {[%emt 0:01:16]} 31. Kf2 {[%emt 0:00:13]} Bxb3 {[%emt 0:00:24]} 32. Kg3 {[%emt 0:00:15]} Bc2 {[%emt 0:03:39]} 33. h4 {[%emt 0:00:19]} f6 {[%emt 0:00:40]} 34. Nd3 {[%emt 0:01:36]} gxh4+ {[%emt 0:04:50]} 35. Kxh4 {[%emt 0:00:03]} Qxd3 {[%emt 0:00:08]} 36. Qxe6+ {[%emt 0:00:12]} Kf8 {[%emt 0:00:01]} 37. Qxf6+ {[%emt 0:00:45]} Ke8 {[%emt 0:00:02]} 38. Qxh6 {[%emt 0:01:02]} Qxf3 {[%emt 0:01:06]} 39. Qh8+ {[%emt 0:00:36]} Qf8 {[%emt 0:00:52]} 40. Qc3 {[%emt 0:00:26]} Qh6+ {[%emt 0:01:34]} 41. Kg3 {[%emt 0:30:03]} Qd6+ {[%emt 0:30:32]} 42. Kf2 {[%emt 0:00:02]} Qf4+ {[%emt 0:00:19]} 43. Ke1 {[%emt 0:00:29]} Be4 {[%emt 0:00:32]} 44. c5 {[%emt 0:00:27]} b5 {[%emt 0:03:36]} 45. c6 {[%emt 0:00:00]} b4 {[%emt 0:00:00]} 46. Qh8+ {[%emt 0:00:00]} Ke7 {[%emt 0:00:00]} 47. Qd4 {[%emt 0:00:00]} Qg3+ {[%emt 0:00:00]} 48. Kd2 {[%emt 0:00:00]} Qd6 {[%emt 0:00:00]} 0-1

[Event "Marienbad IM-I 2022"]
[Site "Marianske Lazne"]
[Date "2022.01.22"]
[Round "9.14"]
[White "Mantovani, Renzo"]
[Black "Ricken, Katharina"]
[Result "0-1"]
[ECO "B34"]
[WhiteElo "2272"]
[BlackElo "2004"]
[Annotator "ChessBase"]
[PlyCount "110"]
[EventDate "2022.01.15"]
[EventType "tourn"]
[EventCountry "CZE"]
[SourceTitle "playchess.com"]
[Source "ChessBase"]
[SourceQuality "1"]
[TimeControl "40/5400+30:1800+30"]

1. Nf3 {[%emt 0:01:14]} c5 {[%emt 0:00:03]} 2. e4 {[%emt 0:00:57]} g6 {[%emt 0:00:04]} 3. d4 cxd4 {[%emt 0:00:05]} 4. Nxd4 {[%emt 0:00:33]} Nc6 {[%emt 0:00:04]} 5. Nc3 {[%emt 0:00:25]} Bg7 {[%emt 0:00:07]} 6. Nb3 {[%emt 0:00:08]} Nf6 {[%emt 0:00:13]} 7. Be2 {[%emt 0:00:15]} d6 {[%emt 0:00:15]} 8. O-O {[%emt 0:00:10]} O-O {[%emt 0:00:03]} 9. Bg5 {[%emt 0:00:13]} b6 {[%emt 0:00:12]} 10. f4 {[%emt 0:00:25]} Bb7 {[%emt 0:00:30]} 11. Bf3 {[%emt 0:00:13]} Nd7 {[%emt 0:03:35]} 12. Qe1 {[%emt 0:03:50]} h6 {[%emt 0:02:30]} 13. Bh4 {[%emt 0:01:52]} Re8 {[%emt 0:02:19]} 14. Rd1 {[%emt 0:00:49]} Qc8 {[%emt 0:22:52]} 15. Bg4 {[%emt 0:08:25]} Ba6 {[%emt 0:11:25]} 16. Rf2 {[%emt 0:00:40]} Qb7 {[%emt 0:04:04]} 17. e5 {[%emt 0:04:45]} Nc5 {[%emt 0:01:07]} 18. Bf3 {[%emt 0:23:50]} Nxb3 {[%emt 0:05:14]} 19. cxb3 {[%emt 0:09:45]} dxe5 {[%emt 0:01:54]} 20. fxe5 {[%emt 0:00:21]} Rad8 {[%emt 0:02:32]} 21. e6 {[%emt 0:06:04]} f5 {[%emt 0:02:18]} 22. Rfd2 {[%emt 0:01:07]} Rxd2 {[%emt 0:04:59]} 23. Rxd2 {[%emt 0:08:19]} Qc8 {[%emt 0:02:37]} 24. Rd7 {[%emt 0:01:18]} g5 {[%emt 0:03:14]} 25. Bf2 {[%emt 0:00:46]} Ne5 {[%emt 0:03:03]} 26. Qd1 {[%emt 0:07:39]} Bf6 {[%emt 0:06:05]} 27. Bh5 {[%emt 0:03:29]} Rf8 {[%emt 0:00:14]} 28. Qd5 {[%emt 0:01:15]} Kg7 {[%emt 0:01:59]} 29. Rxa7 {[%emt 0:13:42]} Rd8 {[%emt 0:01:17]} 30. Rxe7+ {[%emt 0:00:11]} Bxe7 {[%emt 0:00:08]} 31. Qxe5+ {[%emt 0:00:08]} Bf6 {[%emt 0:00:07]} 32. Qxf5 {[%emt 0:00:08]} Bd3 {[%emt 0:00:17]} 33. Qg4 {[%emt 0:01:35]} Rd6 {[%emt 0:03:43]} 34. Bf7 {[%emt 0:01:33]} Bg6 {[%emt 0:02:22]} 35. Bxg6 {[%emt 0:00:21]} Kxg6 {[%emt 0:00:02]} 36. Qe4+ {[%emt 0:00:40]} Kg7 {[%emt 0:00:11]} 37. e7 {[%emt 0:00:23]} Re6 {[%emt 0:00:39]} 38. Qf5 {[%emt 0:01:17]} Re1+ {[%emt 0:01:36]} 39. Bxe1 {[%emt 0:00:03]} Qxf5 {[%emt 0:00:06]} 40. e8=N+ {[%emt 0:01:05]} Kf8 {[%emt 0:00:56]} 41. Nxf6 {[%emt 0:30:09]} Qxf6 {[%emt 0:30:09]} 42. h3 {[%emt 0:00:00]} Qf4 {[%emt 0:00:00]} 43. Ne2 {[%emt 0:00:00]} Qe4 {[%emt 0:00:00]} 44. Kf2 {[%emt 0:00:00]} Qb1 {[%emt 0:00:00]} 45. Bc3 {[%emt 0:00:00]} Qxa2 {[%emt 0:00:00]} 46. Nd4 {[%emt 0:00:00]} Kf7 {[%emt 0:00:00]} 47. g4 {[%emt 0:00:00]} Kg6 {[%emt 0:00:00]} 48. b4 {[%emt 0:00:00]} Qb1 {[%emt 0:00:00]} 49. Kg2 {[%emt 0:00:00]} Qe4+ {[%emt 0:00:00]} 50. Nf3 {[%emt 0:00:00]} Kf7 {[%emt 0:00:00]} 51. Kg3 {[%emt 0:00:00]} Ke6 {[%emt 0:00:00]} 52. Nd2 {[%emt 0:00:00]} Qd3+ {[%emt 0:00:00]} 53. Kg2 {[%emt 0:00:00]} Kd5 {[%emt 0:00:00]} 54. Kh2 {[%emt 0:00:00]} Qe2+ {[%emt 0:00:00]} 55. Kg1 {[%emt 0:00:00]} b5 {[%emt 0:00:00]} 0-1

[Event "Marienbad IM-I 2022"]
[Site "Marianske Lazne"]
[Date "2022.01.22"]
[Round "9.15"]
[White "Bracker, Arne"]
[Black "Smolik, Jachym"]
[Result "1/2-1/2"]
[ECO "B10"]
[WhiteElo "2268"]
[BlackElo "2244"]
[Annotator "ChessBase"]
[PlyCount "80"]
[EventDate "2022.01.15"]
[EventType "tourn"]
[EventCountry "CZE"]
[SourceTitle "playchess.com"]
[Source "ChessBase"]
[SourceQuality "1"]
[TimeControl "40/5400+30:1800+30"]

1. e4 {[%emt 0:00:02]} c6 {[%emt 0:00:05]} 2. Nc3 {[%emt 0:00:08]} d5 {[%emt 0:00:04]} 3. Nf3 {[%emt 0:00:05]} dxe4 {[%emt 0:00:07]} 4. Nxe4 {[%emt 0:00:05]} Nf6 {[%emt 0:00:05]} 5. Qe2 {[%emt 0:00:08]} Nxe4 {[%emt 0:00:05]} 6. Qxe4 {[%emt 0:00:04]} Qa5 {[%emt 0:00:05]} 7. Qf4 {[%emt 0:00:32]} Qf5 {[%emt 0:00:10]} 8. d3 {[%emt 0:00:12]} Qxf4 {[%emt 0:00:52]} 9. Bxf4 {[%emt 0:00:08]} f6 {[%emt 0:00:25]} 10. d4 {[%emt 0:00:15]} Bf5 {[%emt 0:03:07]} 11. O-O-O {[%emt 0:00:33]} e6 {[%emt 0:02:54]} 12. Bc4 {[%emt 0:02:26]} g5 {[%emt 0:02:43]} 13. Bg3 {[%emt 0:00:38]} Nd7 {[%emt 0:04:10]} 14. Rhe1 {[%emt 0:00:56]} Kf7 {[%emt 0:01:48]} 15. h4 {[%emt 0:01:59]} g4 {[%emt 0:01:35]} 16. Ng1 {[%emt 0:00:38]} Nb6 {[%emt 0:07:20]} 17. Bd3 {[%emt 0:02:57]} Bxd3 {[%emt 0:00:47]} 18. Rxd3 {[%emt 0:00:03]} Nd5 {[%emt 0:01:56]} 19. a3 {[%emt 0:04:57]} b5 {[%emt 0:02:42]} 20. Ne2 {[%emt 0:01:03]} Bh6+ {[%emt 0:01:34]} 21. Kb1 {[%emt 0:03:45]} a5 {[%emt 0:02:06]} 22. Bd6 {[%emt 0:08:09]} Rhd8 {[%emt 0:04:03]} 23. Bc5 {[%emt 0:00:33]} Rd7 {[%emt 0:00:30]} 24. g3 {[%emt 0:00:54]} f5 {[%emt 0:05:21]} 25. Red1 {[%emt 0:11:09]} Rb8 {[%emt 0:01:57]} 26. Nc3 {[%emt 0:01:41]} Nf6 {[%emt 0:04:07]} 27. b4 {[%emt 0:04:42]} a4 {[%emt 0:03:15]} 28. Re1 {[%emt 0:03:30]} Rbd8 {[%emt 0:04:30]} 29. Bb6 {[%emt 0:00:24]} Re8 {[%emt 0:00:06]} 30. Bc5 {[%emt 0:00:57]} Rb7 {[%emt 0:03:08]} 31. Bd6 {[%emt 0:03:18]} Rd8 {[%emt 0:01:07]} 32. Be5 {[%emt 0:07:14]} Nd7 {[%emt 0:00:31]} 33. Nd1 {[%emt 0:07:33]} Nxe5 {[%emt 0:02:10]} 34. Rxe5 {[%emt 0:04:53]} Rbd7 {[%emt 0:05:14]} 35. c3 {[%emt 0:08:48]} Rd5 {[%emt 0:06:40]} 36. Re2 {[%emt 0:04:33]} Bg7 {[%emt 0:05:16]} 37. Kc2 {[%emt 0:01:43]} h5 {[%emt 0:01:17]} 38. Ne3 {[%emt 0:01:49]} R5d7 {[%emt 0:00:36]} 39. Rd1 {[%emt 0:00:48]} Bh6 {[%emt 0:00:14]} 40. Ng2 {[%emt 0:01:37]} Rd5 {[%emt 0:00:09]} 1/2-1/2